bitfinex-derivatives/quotes_ETHF0:USTF0_20250417
["timestamp","ask_amount","ask_price","bid_price","bid_amount"]
[1744916998888,0.49748049,1602.0,1601.9,7.5556]
[1744917000590,0.49748049,1602.0,1601.9,3.7645]
[1744917001692,0.49742462,1602.0,1601.9,3.7645]
[1744917002187,0.49742462,1602.0,1601.9,8.2495]
[1744917002492,3.21715483,1602.5,1601.9,16.4573]
[1744917002793,3.6955,1602.4,1602.0,7.3502]
[1744917002991,3.6955,1602.4,1602.1,3.812]
[1744917003192,3.6955,1602.4,1602.2,4.485]
[1744917003493,3.6955,1602.4,1602.3,3.812]
[1744917005996,3.6955,1602.4,1602.3,7.5496]
[1744917009897,3.21715483,1602.5,1602.3,7.5496]
[1744917010393,6.78985483,1602.5,1602.4,3.8093]
[1744917011294,4.06914006,1602.8,1602.4,12.0171]
[1744917011600,4.06914006,1602.8,1602.6,3.2078]
[1744917011896,4.06914006,1602.8,1602.7,7.5036]
[1744917013196,4.06914006,1602.8,1602.7,12.5036]
[1744917013791,4.06914006,1602.8,1602.7,7.5036]
[1744917014694,8.26701365,1602.8,1602.6,7.70115483]
[1744917015002,0.48861667,1602.7,1602.6,3.21715483]
[1744917015199,4.19781667,1602.7,1602.6,0.00935483]
[1744917015892,4.19781667,1602.7,1602.6,3.59785483]
[1744917016088,4.19781667,1602.7,1602.6,0.00935483]
[1744917016290,4.19761998,1602.7,1602.6,0.00935483]
[1744917017398,9.19761998,1602.7,1602.6,0.00935483]
[1744917017699,9.19761998,1602.7,1602.4,8.30199214]
[1744917018005,3.2078,1602.5,1602.4,8.30199214]
[1744917018300,3.69621998,1602.5,1602.4,8.30199214]
[1744917018599,11.20271998,1602.5,1602.4,8.30199214]
[1744917018799,11.20271998,1602.5,1602.2,3.6494]
[1744917019000,7.30871998,1602.4,1602.3,0.00935483]
[1744917019804,7.30856381,1602.4,1602.3,0.00935483]
[1744917020306,12.30856381,1602.4,1602.3,0.00935483]
[1744917023302,7.30856381,1602.4,1602.3,0.00935483]
[1744917023595,12.30828881,1602.4,1602.3,0.00935483]
[1744917025409,7.30828881,1602.4,1602.3,0.00935483]
[1744917025708,12.30828881,1602.4,1602.3,0.00935483]
[1744917026410,12.30828881,1602.4,1601.7,3.772]
[1744917026704,3.2078,1601.8,1601.6,3.5635]
[1744917026905,4.16268881,1601.7,1601.6,3.5635]
[1744917027109,4.16242217,1601.7,1601.6,3.5635]
[1744917027507,4.16242217,1601.7,1601.6,7.4437]
[1744917028700,4.16242217,1601.7,1601.5,8.31134697]
[1744917028902,0.48772217,1601.6,1601.5,8.31134697]
[1744917029103,3.69552217,1601.6,1601.5,12.01134697]
[1744917029413,3.69552217,1601.6,1601.5,3.70935483]
[1744917030119,3.69552217,1601.6,1601.5,0.00935483]
[1744917030605,3.6747,1601.7,1601.5,3.70935483]
[1744917030805,3.21715483,1601.8,1601.5,3.70935483]
[1744917031511,7.15215483,1601.8,1601.5,3.70935483]
[1744917031915,5.18379,1601.7,1601.6,1.24885]
[1744917032113,1.24879,1601.7,1601.6,1.24885]
[1744917032505,1.24885,1601.6,1601.5,4.95822483]
[1744917033408,1.24885,1601.6,1601.5,3.70935483]
[1744917034412,1.24885,1601.6,1601.5,4.95827483]
[1744917034811,1.24885,1601.6,1601.5,3.70935483]
[1744917035011,4.83705,1601.6,1601.5,4.95827483]
[1744917035211,4.83705,1601.6,1601.5,3.70935483]
[1744917035212,1.24885,1601.6,1601.5,3.70935483]
[1744917036119,4.80925,1601.6,1601.5,3.70935483]
[1744917037619,1.24881,1601.7,1601.5,3.70935483]
[1744917037819,1.24881,1601.7,1601.6,1.24879]
[1744917038316,1.24881,1601.7,1601.6,4.88979]
[1744917038712,4.45661,1601.7,1601.6,3.641]
[1744917038919,1.24885,1601.6,1601.5,0.00935483]
[1744917039114,4.84355,1601.6,1601.5,0.00935483]
[1744917040222,4.84355,1601.6,1601.5,3.65035483]
[1744917040716,4.84355,1601.6,1601.5,0.00935483]
[1744917040717,10.32942008,1601.6,1601.5,0.00935483]
[1744917040919,13.65502008,1601.6,1601.5,0.00935483]
[1744917041119,13.65502008,1601.6,1601.5,4.83e-06]
[1744917043328,13.65525903,1601.6,1601.5,4.83e-06]
[1744917044017,1.24924,1601.1,1601.0,3.5795]
[1744917044218,1.24931,1601.0,1600.9,12.13599214]
[1744917044520,1.24931,1601.0,1600.9,9.55138214]
[1744917044926,1.24931,1601.0,1600.9,1.24939]
[1744917045225,1.24931,1601.0,1600.8,1.25875483]
[1744917045727,1.24939,1600.9,1600.8,0.00935483]
[1744917046027,1.24937,1601.0,1600.8,1.25875483]
[1744917046225,1.24916,1601.2,1601.1,1.24924]
[1744917046723,1.24924,1601.1,1601.0,5.73231]
[1744917047328,1.24924,1601.1,1601.0,9.48931]
[1744917047521,1.2492,1601.2,1601.1,1.24921]
[1744917047828,1.2492,1601.2,1601.1,4.97391]
[1744917048029,1.2492,1601.2,1601.1,3.7247]
[1744917048237,4.457,1601.2,1601.1,3.7247]
[1744917048534,4.94385091,1601.2,1601.1,3.7247]
[1744917048735,4.457,1601.2,1601.1,3.7247]
[1744917049735,1.2492,1601.2,1601.1,3.7247]
[1744917051927,1.73652614,1601.2,1601.1,3.7247]
[1744917052522,1.73659497,1601.2,1601.1,3.7247]
[1744917053336,1.2492,1601.2,1601.1,4.97394]
[1744917053838,1.2492,1601.2,1601.1,3.7247]
[1744917054037,1.73669821,1601.2,1601.1,3.7247]
[1744917054335,1.24924,1601.1,1601.0,8.236]
[1744917054636,1.24931,1601.0,1600.9,3.2078]
[1744917054836,1.7369627,1601.0,1600.9,7.4634]
[1744917055636,1.7369627,1601.0,1600.9,8.71279]
[1744917055937,1.73730399,1601.0,1600.9,1.24939]
[1744917056138,0.48792399,1601.0,1600.9,16.71859]
[1744917056346,1.24907,1601.4,1601.3,1.24908]
[1744917056637,1.73723629,1601.4,1601.3,1.24908]
[1744917057139,1.24908,1601.3,1601.2,3.6984]
[1744917057326,1.24924,1601.1,1601.0,3.8799]
[1744917057532,1.73746629,1601.1,1601.0,3.8799]
[1744917057735,1.24939,1600.9,1600.8,0.00935483]
[1744917058038,4.94534011,1600.9,1600.8,0.00935483]
[1744917058431,5.54504011,1600.9,1600.8,0.00935483]
[1744917058840,1.73754011,1600.9,1600.8,4.95722483]
[1744917059034,1.24939,1600.9,1600.8,3.70775483]
[1744917059343,1.24939,1600.9,1600.8,4.95722483]
[1744917059636,1.24939,1600.9,1600.8,3.70775483]
[1744917059938,1.73776718,1600.9,1600.8,3.70775483]
[1744917060341,1.73776718,1600.9,1600.8,4.95722483]
[1744917060342,1.73775787,1600.9,1600.8,4.95722483]
[1744917060540,1.73776563,1600.9,1600.8,3.70775483]
[1744917060735,1.73774125,1600.9,1600.8,3.70775483]
[1744917061240,1.73776084,1600.9,1600.8,3.70775483]
[1744917061833,1.24939,1600.9,1600.8,3.70775483]
[1744917062236,1.737713,1600.9,1600.8,0.00935483]
[1744917062636,4.945513,1600.9,1600.8,0.00935483]
[1744917064735,4.945512,1600.9,1600.8,0.00935483]
[1744917065135,4.945512,1600.9,1600.8,3.68335483]
[1744917066442,6.33109,1601.1,1600.8,3.68335483]
[1744917066742,1.73786422,1601.0,1600.9,1.24938]
[1744917066943,1.73786422,1601.0,1600.9,1.24939]
[1744917067244,1.73786422,1601.0,1600.8,4.93278483]
[1744917067443,1.73787422,1600.9,1600.8,4.93278483]
[1744917067642,1.24939,1600.9,1600.8,1.25878483]
[1744917068138,1.24939,1600.9,1600.8,0.00935483]
[1744917068340,1.73826274,1600.9,1600.8,0.00935483]
[1744917068535,1.73826274,1600.9,1600.8,1.25882483]
[1744917069247,1.73826274,1600.9,1600.8,0.00935483]
[1744917069445,1.73826274,1600.9,1600.8,1.25882483]
[1744917070047,1.73826274,1600.9,1600.8,0.00935483]
[1744917070745,1.73826274,1600.9,1600.8,1.25882483]
[1744917070945,1.73826274,1600.9,1600.8,0.00935483]
[1744917071150,4.94606274,1600.9,1600.8,0.00935483]
[1744917071343,8.89126274,1600.9,1600.8,0.00935483]
[1744917071947,8.89174735,1600.9,1600.8,0.00935483]
[1744917072848,12.62154735,1600.9,1600.8,0.00935483]
[1744917073351,17.62154735,1600.9,1600.8,4.83e-06]
[1744917073949,17.62164705,1600.9,1600.8,4.83e-06]
[1744917075648,17.6214362,1600.9,1600.8,4.83e-06]
[1744917076454,1.24986,1600.3,1600.2,8.30199214]
[1744917076746,1.7391062,1600.3,1600.2,8.30199214]
[1744917077251,9.2949062,1600.3,1600.2,8.30199214]
[1744917077450,9.29426558,1600.3,1600.2,8.30199214]
[1744917078652,4.87916,1600.3,1600.2,8.30199214]
[1744917078854,5.36753184,1600.3,1600.2,11.90879214]
[1744917079352,4.87916,1600.3,1600.2,3.6068]
[1744917083757,4.87916,1600.3,1600.2,7.4322]
[1744917086155,6.25049,1600.0,1599.5,12.41009762]
[1744917086350,1.25033,1599.7,1599.5,12.41009762]
[1744917087053,1.25033,1599.7,1599.5,13.66056762]
[1744917087354,1.73879358,1599.7,1599.5,12.41009762]
[1744917087554,9.16209358,1599.7,1599.5,12.41009762]
[1744917088254,9.16166717,1599.7,1599.5,12.41009762]
[1744917089155,4.84233,1599.7,1599.5,12.41009762]
[1744917089753,5.33023337,1599.7,1599.5,12.41009762]
[1744917090160,4.84233,1599.7,1599.5,12.41009762]
[1744917091254,5.32979255,1599.7,1599.5,12.41009762]
[1744917093365,4.84233,1599.7,1599.5,12.41009762]
[1744917093768,4.84233,1599.7,1599.4,7.1723]
[1744917093769,1.25049,1599.5,1599.4,7.1723]
[1744917095059,9.479,1599.5,1598.8,11.50979214]
[1744917095263,1.25096,1598.9,1598.8,11.50979214]
[1744917095566,1.25096,1598.9,1598.8,8.30199214]
[1744917096464,1.25094,1599.0,1598.8,13.30199214]
[1744917096663,1.25096,1598.9,1598.8,9.55296214]
[1744917096964,1.2509,1599.0,1598.9,1.25091]
[1744917097166,1.25096,1598.9,1598.8,9.55296214]
[1744917097359,1.25096,1598.9,1598.8,1.25097]
[1744917097558,1.25096,1598.9,1598.8,6.25097]
[1744917098760,3.2078,1599.2,1598.8,8.12755]
[1744917098961,1.25084,1599.1,1599.0,1.25081]
[1744917099165,1.25084,1599.1,1599.0,5.73081]
[1744917099362,1.25084,1599.1,1599.0,10.73081]
[1744917099867,1.25075,1599.2,1599.1,1.25073]
[1744917100061,0.00935483,1599.3,1599.2,1.25072]
[1744917100265,1.25999483,1599.3,1599.2,1.25072]
[1744917100467,0.00935483,1599.3,1599.2,6.25072]
[1744917100668,1.25999483,1599.3,1599.2,6.25072]
[1744917101065,1.25999483,1599.3,1599.2,3.45523]
[1744917101261,1.25999483,1599.3,1598.6,1.25115]
[1744917101262,1.25116,1598.7,1598.6,1.25115]
[1744917101463,1.25117,1598.7,1598.6,1.25115]
[1744917101662,1.25117,1598.7,1598.6,10.73215]
[1744917101964,1.25117,1598.7,1598.6,5.73215]
[1744917102567,1.25117,1598.7,1598.6,1.25115]
[1744917102762,1.2511,1598.8,1598.7,1.25107]
[1744917103868,1.2511,1598.8,1598.7,5.02467]
[1744917104069,1.25103,1598.9,1598.8,1.25103]
[1744917104270,1.25103,1598.9,1598.8,5.07693]
[1744917104967,1.25103,1598.9,1598.8,3.8259]
[1744917105471,1.25103,1598.9,1598.8,5.07693]
[1744917105770,1.25103,1598.9,1598.8,3.8259]
[1744917105969,1.25103,1598.9,1598.8,8.88393]
[1744917106976,1.25081,1599.2,1599.1,1.2508]
[1744917107273,4.46785483,1599.3,1599.2,1.25072]
[1744917107864,4.46785483,1599.3,1599.2,4.96872]
[1744917108871,1.26005483,1599.3,1599.2,4.96872]
[1744917110073,1.26005483,1599.3,1599.2,3.718]
[1744917110271,1.25103,1598.8,1598.7,5.73211]
[1744917110474,1.25103,1598.8,1598.7,13.51671]
[1744917110676,1.251,1598.9,1598.8,1.25097]
[1744917110871,1.251,1598.9,1598.8,3.8528]
[1744917111177,2.79577,1598.9,1598.8,3.8528]
[1744917112481,2.79577,1598.9,1598.8,7.4327]
[1744917112681,6.34707,1598.9,1598.8,7.4327]
[1744917113179,4.8023,1598.9,1598.8,8.68373]
[1744917113481,1.251,1598.9,1598.8,8.68373]
[1744917114682,1.251,1598.9,1598.8,7.4327]
[1744917115382,6.41457,1598.9,1598.8,7.4327]
[1744917116381,6.90338133,1598.9,1598.8,7.4327]
[1744917117679,6.90348629,1598.9,1598.8,7.4327]
[1744917118980,10.65248629,1598.9,1598.4,3.2078]
[1744917119280,10.65248629,1598.9,1598.4,3.7289]
[1744917119281,4.45907,1598.5,1598.4,3.7289]
[1744917119482,1.25135,1598.4,1598.3,4.48]
[1744917119683,5.01545,1598.4,1598.3,4.48]
[1744917119880,6.56022,1598.4,1598.3,4.48]
[1744917120187,6.56022,1598.4,1598.3,8.4209]
[1744917120382,9.2530501,1598.4,1598.0,9.96502214]
[1744917120587,4.45938,1598.1,1598.0,6.88022214]
[1744917120785,9.4283301,1598.1,1598.0,3.59006214]
[1744917121086,14.42814595,1598.1,1598.0,2.14e-06]
[1744917122382,4.94814595,1598.1,1598.0,2.14e-06]
[1744917122588,4.45938,1598.1,1598.0,2.14e-06]
[1744917122889,4.45938,1598.1,1598.0,8.25870214]
[1744917124087,3.2078,1598.1,1598.0,9.51036214]
[1744917124394,4.45938,1598.1,1598.0,2.14e-06]
[1744917124584,8.39188,1598.1,1598.0,2.14e-06]
[1744917125095,1.25166,1598.0,1597.9,7.4508]
[1744917125294,5.18416,1598.0,1597.9,7.4508]
[1744917126091,1.25166,1598.0,1597.9,8.70254]
[1744917126292,1.25166,1598.0,1597.9,7.4508]
[1744917126487,1.25166,1598.0,1597.9,8.70254]
[1744917127194,1.25166,1598.0,1597.9,7.4508]
[1744917127992,4.85446,1598.0,1597.9,7.4508]
[1744917128796,4.85446,1598.0,1597.9,8.70254]
[1744917128990,4.85446,1598.0,1597.9,7.4508]
[1744917129493,4.85446,1598.0,1597.9,8.70254]
[1744917129989,4.85446,1598.0,1597.9,7.4508]
[1744917130199,1.25174,1597.9,1597.8,4.481]
[1744917130395,8.37134,1597.9,1597.8,4.481]
[1744917130584,1.25189,1597.7,1597.6,13.45106]
[1744917130787,4.45969,1597.7,1597.6,8.3554]
[1744917131190,4.45969,1597.7,1597.6,12.1991]
[1744917131895,4.45969,1597.7,1597.6,13.45107]
[1744917132592,1.25189,1597.8,1597.7,1.25187]
[1744917132794,1.25177,1597.9,1597.8,1.25182]
[1744917133096,1.2517,1598.0,1597.9,1.25174]
[1744917133311,1.2517,1598.0,1597.9,5.73374]
[1744917133487,4.45945,1598.1,1598.0,1.25166]
[1744917133691,4.45945,1598.1,1598.0,12.57796]
[1744917134492,3.2078,1598.1,1598.0,12.57796]
[1744917134699,1.25158,1598.2,1598.1,1.25154]
[1744917134900,1.25158,1598.2,1598.1,5.17234]
[1744917135197,8.4052,1598.3,1598.2,1.2515]
[1744917135492,3.2078,1598.3,1598.2,9.3687]
[1744917135694,0.00938437,1598.4,1598.3,1.25142]
[1744917135897,0.00938437,1598.4,1598.3,4.90592]
[1744917136201,1.26073437,1598.4,1598.3,4.90592]
[1744917136402,0.00938437,1598.4,1598.3,9.90592]
[1744917137496,0.00938437,1598.4,1598.3,4.90592]
[1744917137693,0.00938437,1598.4,1598.3,9.90592]
[1744917138005,1.25108,1598.8,1598.7,1.25111]
[1744917138199,1.25108,1598.8,1598.7,5.73311]
[1744917138800,1.25108,1598.8,1598.7,9.47501]
[1744917139804,4.45888,1598.8,1598.7,9.47501]
[1744917140001,4.45888,1598.8,1598.7,8.2239]
[1744917140201,1.25111,1598.7,1598.3,3.12854]
[1744917140398,1.25197,1597.6,1597.5,12.41009762]
[1744917140900,6.73879676,1597.6,1597.5,12.41009762]
[1744917141105,10.39199676,1597.6,1597.5,12.41009762]
[1744917141810,10.39147143,1597.6,1597.5,12.41009762]
[1744917141998,5.39147143,1597.6,1597.5,12.41009762]
[1744917142307,4.90517,1597.6,1597.5,12.41009762]
[1744917143598,5.39135816,1597.6,1597.5,12.41009762]
[1744917143803,4.90517,1597.6,1597.5,12.41009762]
[1744917144002,1.25213,1597.4,1597.3,3.9005]
[1744917144701,4.92903,1597.4,1597.3,3.9005]
[1744917145509,1.25221,1597.3,1597.2,4.597]
[1744917145709,4.46001,1597.3,1597.2,8.4149]
[1744917148723,1.25236,1597.1,1597.0,8.5442]
[1744917148919,4.46016,1597.1,1597.0,3.9462]
[1744917149110,4.46016,1597.1,1595.9,26.90644045]
[1744917149111,3.13149,1596.9,1596.3,3.2078]
[1744917149308,18.60743,1597.2,1596.2,19.3881537]
[1744917149309,1.25286,1596.5,1596.2,19.8259537]
[1744917149516,1.25291,1596.4,1596.2,19.8259537]
[1744917149822,1.25275,1596.7,1596.6,1.25276]
[1744917150023,1.25275,1596.7,1596.6,5.85076]
[1744917150318,1.26200437,1596.8,1596.6,9.598]
[1744917150518,1.26200437,1596.8,1596.7,3.8608]
[1744917150721,1.25283,1596.6,1596.4,8.1885]
[1744917150921,1.25283,1596.6,1596.5,3.5645]
[1744917151422,1.25283,1596.6,1596.5,4.81734]
[1744917151622,1.25283,1596.6,1596.5,3.5645]
[1744917152224,5.18213,1596.6,1596.5,3.5645]
[1744917152424,1.25283,1596.6,1596.5,4.81734]
[1744917153129,1.25276,1596.6,1596.5,3.5645]
[1744917153429,1.25276,1596.6,1596.5,4.81733]
[1744917153726,1.25297,1596.4,1596.3,1.25296]
[1744917153933,1.25297,1596.4,1596.3,5.00926]
[1744917154429,8.18279,1596.5,1596.4,1.25291]
[1744917154623,1.25289,1596.5,1596.4,5.00921]
[1744917154817,1.25282,1596.6,1596.5,1.25281]
[1744917155027,8.18265,1596.7,1596.6,1.25276]
[1744917155217,4.46055,1596.7,1596.6,1.25276]
[1744917155421,3.2078,1596.7,1596.6,1.25276]
[1744917155626,4.46048,1596.7,1596.6,1.25276]
[1744917156031,1.25268,1596.7,1596.6,1.25276]
[1744917157027,1.26203437,1596.8,1596.7,1.25268]
[1744917157227,0.00938437,1596.8,1596.7,5.85168]
[1744917157530,1.26198437,1596.8,1596.7,8.3471]
[1744917157826,1.25284,1596.5,1596.4,4.46067]
[1744917158027,1.25284,1596.5,1596.4,9.05967]
[1744917158228,8.40482,1596.6,1596.5,1.25284]
[1744917158521,8.40482,1596.6,1596.5,3.7481]
[1744917161028,8.40482,1596.6,1596.5,5.00094]
[1744917161330,1.25273,1596.7,1596.6,1.25268]
[1744917161519,1.25273,1596.7,1596.6,4.86558]
[1744917161725,0.00938437,1596.8,1596.7,1.25268]
[1744917161925,1e-08,1596.8,1596.7,16.87818]
[1744917162130,1e-08,1596.8,1596.7,21.87818]
[1744917162430,1e-08,1596.8,1596.7,25.08598]
[1744917162727,1e-08,1596.8,1596.7,16.87818]
[1744917163926,1e-08,1596.8,1596.7,25.08598]
[1744917165821,3.8766,1597.7,1597.6,1.25197]
[1744917166026,1.25183,1597.8,1597.7,1.25183]
[1744917166236,4.45963,1597.8,1597.7,5.19053]
[1744917167435,1.25189,1597.7,1597.6,2e-08]
[1744917167636,4.83159,1597.7,1597.6,2e-08]
[1744917167835,13.70819,1597.7,1597.6,2e-08]
[1744917168623,1.25189,1597.7,1597.6,2e-08]
[1744917169235,4.83589,1597.7,1597.6,2e-08]
[1744917169639,4.83589,1597.7,1597.6,1.25197002]
[1744917170035,4.83589,1597.7,1597.6,2e-08]
[1744917171424,4.83589,1597.7,1597.6,1.25197002]
[1744917171624,4.83589,1597.7,1597.6,2e-08]
[1744917171835,10.32314605,1597.7,1597.6,2e-08]
[1744917172036,4.83589,1597.7,1597.6,2e-08]
[1744917172238,5.32309454,1597.7,1597.6,2e-08]
[1744917172538,14.20428899,1597.7,1597.6,2e-08]
[1744917173938,10.32308899,1597.7,1597.6,2e-08]
[1744917174137,4.83589,1597.7,1597.6,2e-08]
[1744917176943,14.04903679,1597.7,1597.6,2e-08]
[1744917177945,14.04905999,1597.7,1597.6,2e-08]
[1744917178137,13.56199,1597.7,1597.6,2e-08]
[1744917178333,1.25268,1596.7,1596.6,13.66281762]
[1744917178638,1.25268,1596.7,1596.6,17.60777762]
[1744917179745,1.26198437,1596.8,1596.7,1.25268]
[1744917179942,1.26198437,1596.8,1596.7,9.92668]
[1744917180339,1.26198437,1596.8,1596.7,5.19768]
[1744917180740,4.46978437,1596.8,1596.7,5.19768]
[1744917181044,1.26198437,1596.8,1596.7,5.19768]
[1744917181248,1.26198437,1596.8,1596.6,12.41009762]
[1744917181249,1.25268,1596.7,1596.6,12.41009762]
[1744917181444,4.96988,1596.7,1596.6,12.41009762]
[1744917182346,1.25276,1596.6,1596.5,1.25283]
[1744917182546,1.25276,1596.6,1596.5,4.89393]
[1744917182547,4.46056,1596.6,1596.5,4.89393]
[1744917183046,3.2078,1596.6,1596.5,4.89393]
[1744917183248,4.46056,1596.6,1596.5,4.89393]
[1744917184343,1.25299,1596.3,1596.2,0.01305608]
[1744917184539,1.25299,1596.3,1596.2,1.26612608]
[1744917184739,4.46077,1596.4,1596.3,1.25299]
[1744917184940,4.99247,1596.5,1596.4,1.25291]
[1744917185141,1.25291,1596.4,1596.3,3.5872]
[1744917185433,4.9925,1596.5,1596.4,1.25291]
[1744917187046,4.9925,1596.5,1596.4,5.03161]
[1744917188546,4.46062,1596.6,1596.5,1.25284]
[1744917188847,4.46062,1596.6,1596.5,5.03154]
[1744917189051,6.83168437,1596.8,1596.5,8.7787]
[1744917189246,0.00938437,1596.8,1596.7,1.25268]
[1744917189451,1.26198437,1596.8,1596.7,1.25268]
[1744917189747,1.26198437,1596.8,1596.7,5.03138]
[1744917190149,0.00938437,1596.8,1596.7,5.03138]
[1744917191847,0.00938437,1596.8,1596.7,10.03138]
[1744917192045,1.25227,1597.3,1597.2,1.25224]
[1744917192550,9.13954006,1597.4,1597.3,1.25221]
[1744917192851,9.13951006,1597.4,1597.3,1.25221]
[1744917193246,9.13951006,1597.4,1597.3,5.19611]
[1744917194045,4.46928437,1597.5,1597.4,1.25213]
[1744917194243,4.46928437,1597.5,1597.4,5.19603]
[1744917194748,3.21718437,1597.5,1597.4,5.19603]
[1744917194950,3.21718437,1597.5,1597.2,7.2786]
[1744917195150,3.8731,1597.4,1597.2,11.2225]
[1744917195351,1.25221,1597.3,1597.2,12.47471]
[1744917196752,5.12528,1597.4,1597.3,1.25221]
[1744917197146,5.12528,1597.4,1597.3,4.91331]
[1744917197650,5.12528,1597.4,1597.3,3.6611]
[1744917198051,5.12528,1597.4,1597.3,4.91331]
[1744917198252,3.8731,1597.4,1597.1,4.731]
[1744917198444,3.8731,1597.4,1597.1,5.98336]
[1744917198445,4.46009,1597.2,1597.1,5.98336]
[1744917200558,1.25223,1597.3,1597.2,3.7967]
[1744917200755,5.19823,1597.3,1597.2,3.7967]
[1744917201053,1.2524,1597.1,1596.9,7.86126]
[1744917201256,1.2524,1597.1,1597.0,3.7967]
[1744917201751,4.46015,1597.2,1597.1,1.25236]
[1744917202146,1.25236,1597.1,1597.0,5.04909]
[1744917202554,1.25236,1597.1,1597.0,9.77909]
[1744917203353,8.39855,1597.2,1597.1,1.25236]
[1744917203656,8.39855,1597.2,1597.1,4.94726]
[1744917204354,3.2078,1597.4,1597.2,1.25222]
[1744917204653,1.25227,1597.3,1597.2,4.94712]
[1744917206056,5.05237,1597.3,1597.2,4.94712]
[1744917206755,6.33813,1597.4,1597.3,1.25221]
[1744917206756,4.45999,1597.4,1597.3,1.25221]
[1744917206956,4.45999,1597.4,1597.3,5.17541]
[1744917208052,3.2078,1597.4,1597.3,9.87841]
[1744917208453,3.2078,1597.4,1597.3,17.55791]
[1744917209360,4.45993,1597.4,1597.3,17.55791]
[1744917209760,1.25231,1597.3,1597.2,1.25225]
[1744917210061,4.96531,1597.3,1597.2,5.05485]
[1744917213251,3.2078,1597.4,1597.2,3.8026]
[1744917213463,4.87675,1597.4,1597.3,5.06011]
[1744917214059,8.08455,1597.4,1597.3,5.06011]
[1744917214464,8.08455,1597.4,1597.3,3.8079]
[1744917214662,8.08455,1597.4,1597.3,5.06011]
[1744917214865,8.08455,1597.4,1597.3,3.8079]
[1744917215356,1.25236,1597.2,1597.1,5.95533]
[1744917215755,1.25236,1597.2,1597.1,9.85733]
[1744917216163,5.11817,1597.3,1597.2,1.25229]
[1744917216368,5.11817,1597.3,1597.2,5.15429]
[1744917217259,1.26148437,1597.5,1597.2,5.15429]
[1744917217560,0.00938437,1597.5,1597.4,1.25213]
[1744917217763,0.00938437,1597.5,1597.4,9.82833]
[1744917218869,1.26143437,1597.5,1597.4,9.82833]
[1744917219870,0.00938437,1597.5,1597.4,9.82833]
[1744917220369,1.26143437,1597.5,1597.4,9.82833]
[1744917220760,5.17483437,1597.5,1597.4,9.82833]
[1744917221365,5.66476905,1597.5,1597.4,8.5762]
[1744917221570,5.66476905,1597.5,1597.4,9.82833]
[1744917221874,1.25232,1597.2,1597.1,5.95527]
[1744917222068,4.46012,1597.2,1597.1,5.95527]
[1744917222556,4.94994131,1597.2,1597.1,4.703]
[1744917222763,4.46012,1597.2,1597.1,5.95536]
[1744917223369,4.46012,1597.2,1597.1,5.17676]
[1744917223569,4.46012,1597.2,1597.1,9.87976]
[1744917223758,3.2078,1597.2,1597.1,9.87976]
[1744917223964,4.46009,1597.2,1597.1,9.87976]
[1744917224168,5.16561,1597.3,1597.2,1.25229]
[1744917224369,5.16561,1597.3,1597.2,4.82549]
[1744917224570,5.65544122,1597.3,1597.2,4.82549]
[1744917225075,0.48983122,1597.3,1597.2,4.82549]
[1744917225373,0.00938437,1597.5,1597.4,1.25213]
[1744917225566,0.00938437,1597.5,1597.4,5.95513]
[1744917225766,0.00938437,1597.5,1597.4,9.90163]
[1744917225967,0.00938437,1597.5,1597.4,13.50483]
[1744917227973,1.26143437,1597.5,1597.4,13.50483]
[1744917228669,1.26143437,1597.5,1597.4,12.2527]
[1744917228873,1.26143437,1597.5,1597.4,13.50483]
[1744917229569,0.00938437,1597.5,1597.4,13.50483]
[1744917230171,1.26143437,1597.5,1597.4,13.50483]
[1744917230371,4.86033437,1597.5,1597.4,13.50483]
[1744917231277,3.60828437,1597.5,1597.4,17.13083]
[1744917231873,4.86033437,1597.5,1597.4,4.703]
[1744917232069,5.35039864,1597.5,1597.4,5.95513]
[1744917232374,5.35039864,1597.5,1597.4,1.25213]
[1744917232572,1.25213,1597.4,1597.3,5.95514]
[1744917232774,5.17933,1597.4,1597.3,5.95514]
[1744917232971,3.9272,1597.4,1597.3,5.95514]
[1744917233174,0.00938437,1597.5,1597.4,1.25213]
[1744917233373,1.7515639,1597.5,1597.4,9.73653]
[1744917233865,1.75163778,1597.5,1597.4,9.73653]
[1744917234069,1.75163778,1597.5,1597.4,4.703]
[1744917234678,1.25223,1597.4,1597.1,14.7002]
[1744917234971,1.25225,1597.3,1597.2,5.83921]
[1744917235172,1.74249036,1597.3,1597.2,9.62061]
[1744917235376,1.25225,1597.3,1597.2,9.62061]
[1744917235576,1.74251176,1597.3,1597.2,9.62061]
[1744917235877,4.45999,1597.4,1597.3,1.25221]
[1744917236179,1.25221,1597.3,1597.2,9.62062]
[1744917237884,4.45995,1597.4,1597.3,1.25221]
[1744917238074,4.95021721,1597.4,1597.3,5.20681]
[1744917238382,1.26150437,1597.5,1597.4,1.25213]
[1744917238572,0.49968308,1597.5,1597.4,5.20673]
[1744917238877,1.75173308,1597.5,1597.4,5.20673]
[1744917239775,10.32804006,1597.9,1597.4,5.20673]
[1744917239776,4.06914006,1597.9,1597.4,15.21492]
[1744917239982,4.06914006,1597.9,1597.8,1.25182]
[1744917240184,5.32088006,1597.9,1597.8,5.83882]
[1744917240483,4.06914006,1597.9,1597.8,5.83882]
[1744917240783,8.52868006,1597.9,1597.8,4.587]
[1744917240985,7.27694006,1597.9,1597.8,5.83882]
[1744917241282,8.52868006,1597.9,1597.8,4.587]
[1744917241581,4.06914006,1597.9,1597.8,5.83882]
[1744917241781,4.06914006,1597.9,1597.8,9.51922]
[1744917241979,7.27694006,1597.9,1597.8,9.51922]
[1744917242295,4.06914006,1597.9,1597.8,9.51922]
[1744917242881,4.06914006,1597.9,1597.8,13.33042]
[1744917243189,8.13828013,1598.1,1598.0,1.25166]
[1744917243794,8.13828013,1598.1,1598.0,4.93206]
[1744917245693,0.00938437,1598.2,1598.1,1.25158]
[1744917245893,0.00938437,1598.2,1598.1,9.42148]
[1744917246702,1.25129,1598.5,1598.2,3.12871]
[1744917246902,4.45911,1598.5,1598.4,1.25133]